bitfinex-derivatives/quotes_BNBF0:USTF0_20250630
["timestamp","ask_amount","ask_price","bid_price","bid_amount"]
[1751271940400,0.26630343,653.92,652.94,1.68453855]
[1751271940597,0.26630343,653.92,652.95,1.68453855]
[1751271940801,0.26630343,653.92,652.96,1.68453855]
[1751271941101,0.26630343,653.92,652.97,1.68453855]
[1751271941302,0.26630343,653.92,652.98,1.68453855]
[1751271941597,0.26630343,653.92,652.92,1.14717273]
[1751271941598,0.26630343,653.92,652.99,1.68453855]
[1751271941901,0.26630343,653.92,653.0,1.68453855]
[1751271942097,0.26630343,653.92,653.01,1.68453855]
[1751271942400,0.26630343,653.92,653.02,1.68453855]
[1751271942696,0.26630343,653.92,653.03,1.68453855]
[1751271942896,0.26630343,653.92,653.04,1.68453855]
[1751271943101,0.26630343,653.92,653.05,1.68453855]
[1751271943400,0.26630343,653.92,653.06,1.68453855]
[1751271943598,0.26630343,653.92,653.07,1.68453855]
[1751271943797,0.26630343,653.92,653.08,1.68453855]
[1751271943999,0.26630343,653.92,653.09,1.68453855]
[1751271944197,0.26630343,653.92,653.1,1.68453855]
[1751271944396,0.26630343,653.92,653.11,1.68453855]
[1751271944601,0.26630343,653.92,653.12,1.68453855]
[1751271944900,0.26630343,653.92,652.91,1.14717273]
[1751271944901,0.26630343,653.92,653.13,1.68453855]
[1751271945101,0.26630343,653.92,653.14,0.56652283]
[1751271945401,0.26630343,653.92,653.15,0.56652283]
[1751271945597,0.26630343,653.92,652.91,1.14717273]
[1751271945598,0.26630343,653.92,653.16,0.56652283]
[1751271945901,0.26630343,653.92,653.17,0.56652283]
[1751271946101,0.26630343,653.92,653.18,0.56652283]
[1751271946297,0.26630343,653.92,653.19,0.56652283]
[1751271946496,0.26630343,653.92,653.2,0.56652283]
[1751271946701,0.26630343,653.92,652.92,1.14717273]
[1751271946901,0.26630343,653.92,652.93,1.68443534]
[1751271947201,0.26630343,653.92,652.94,1.68443534]
[1751271947400,0.26630343,653.92,652.95,1.68443534]
[1751271947599,0.26630343,653.92,652.96,1.68443534]
[1751271947801,0.26630343,653.92,652.97,1.68443534]
[1751271948097,0.26630343,653.92,652.98,1.68443534]
[1751271948311,0.26630343,653.92,652.99,1.68443534]
[1751271948504,0.26630343,653.92,653.0,1.68443534]
[1751271948704,0.26630343,653.92,653.01,1.68443534]
[1751271949005,0.26630343,653.92,652.87,1.14717273]
[1751271949006,0.26630343,653.92,653.02,1.68443534]
[1751271949206,0.26630343,653.92,653.03,1.68443534]
[1751271949401,0.26630343,653.92,653.04,1.68443534]
[1751271949701,0.26630343,653.92,653.05,1.68443534]
[1751271949903,0.26630343,653.92,653.06,1.68443534]
[1751271950104,0.26630343,653.92,653.07,1.68443534]
[1751271950304,0.26630343,653.92,653.08,1.68443534]
[1751271950602,0.26630343,653.92,653.09,1.68443534]
[1751271950800,0.26630343,653.92,653.1,1.68443534]
[1751271951004,0.26630343,653.92,652.86,1.14717273]
[1751271951005,0.26630343,653.92,653.11,1.68443534]
[1751271951202,0.26630343,653.92,653.12,1.68443534]
[1751271951402,0.26630343,653.92,653.13,1.68443534]
[1751271951603,0.26630343,653.92,653.14,0.5666996]
[1751271951902,0.26630343,653.92,653.15,0.5666996]
[1751271952105,0.26630343,653.92,653.16,0.5666996]
[1751271952303,0.26630343,653.92,653.17,0.5666996]
[1751271952506,0.26630343,653.92,653.18,0.5666996]
[1751271952706,0.26630343,653.92,653.19,0.5666996]
[1751271953007,0.26630343,653.92,653.2,0.5666996]
[1751271953208,0.26630343,653.92,653.21,0.5666996]
[1751271953504,0.26630343,653.92,653.22,0.5666996]
[1751271953705,0.26630343,653.92,653.23,0.5666996]
[1751271953905,0.26630343,653.92,653.24,0.5666996]
[1751271954108,0.26630343,653.92,652.84,1.14717273]
[1751271954307,0.26630343,653.92,652.85,1.6846748]
[1751271954508,0.26630343,653.92,652.86,1.6846748]
[1751271954709,0.26630343,653.92,652.87,1.6846748]
[1751271954910,0.26630343,653.92,652.88,1.6846748]
[1751271955109,0.26630343,653.92,652.89,1.6846748]
[1751271955310,0.26630343,653.92,652.9,1.6846748]
[1751271955508,0.26630343,653.92,652.91,1.6846748]
[1751271955707,0.26630343,653.92,652.92,1.6846748]
[1751271956008,0.26630343,653.92,652.84,1.14717273]
[1751271956009,0.26630343,653.92,652.93,1.6846748]
[1751271956204,0.26630343,653.92,652.94,1.6846748]
[1751271956407,0.26630343,653.92,652.95,1.6846748]
[1751271956709,0.26630343,653.92,652.96,1.6846748]
[1751271956907,0.26630343,653.92,652.97,1.6846748]
[1751271957106,0.26630343,653.92,652.98,1.6846748]
[1751271957407,0.26630343,653.92,652.99,1.6846748]
[1751271957614,0.26630343,653.92,653.0,1.6846748]
[1751271957906,0.26630343,653.92,653.01,1.6846748]
[1751271958110,0.26630343,653.92,653.02,1.6846748]
[1751271958307,0.26630343,653.92,653.03,1.6846748]
[1751271958508,0.26630343,653.92,653.04,1.6846748]
[1751271958707,0.26630343,653.92,653.05,1.6846748]
[1751271958906,0.26630343,653.92,653.06,1.6846748]
[1751271959109,0.26630343,653.92,653.07,1.6846748]
[1751271959413,0.26630343,653.92,653.08,1.6846748]
[1751271959709,0.26630343,653.92,653.09,1.6846748]
[1751271959909,0.26630343,653.92,653.1,1.6846748]
[1751271960109,0.26630343,653.92,653.11,1.6846748]
[1751271960310,0.26630343,653.92,653.12,1.6846748]
[1751271960510,0.26630343,653.92,653.13,0.5667967]
[1751271960712,0.26630343,653.92,653.14,0.5667967]
[1751271960908,0.26630343,653.92,653.15,0.5667967]
[1751271961111,0.26630343,653.92,653.16,0.5667967]
[1751271961309,0.26630343,653.92,653.17,0.5667967]
[1751271961510,0.26630343,653.92,653.18,0.5667967]
[1751271961710,0.26630343,653.92,653.19,0.5667967]
[1751271961910,0.26630343,653.92,653.2,0.5667967]
[1751271962113,0.26630343,653.92,653.21,0.5667967]
[1751271962314,0.26630343,653.92,653.22,0.5667967]
[1751271962511,0.26630343,653.92,653.23,0.5667967]
[1751271962715,0.26630343,653.92,653.24,0.5667967]
[1751271962914,0.26630343,653.92,652.8,1.14717273]
[1751271963215,0.26630343,653.92,652.81,1.68464313]
[1751271963511,0.26630343,653.92,652.82,1.68464313]
[1751271963714,0.26630343,653.92,652.83,1.68464313]
[1751271963913,0.26630343,653.92,652.8,1.14717273]
[1751271963914,0.26630343,653.92,652.84,1.68464313]
[1751271964115,0.26630343,653.92,652.85,1.68464313]
[1751271964318,0.26630343,653.92,652.86,1.68464858]
[1751271964617,0.26630343,653.92,652.87,1.68464858]
[1751271964816,0.26630343,653.92,652.88,1.68464858]
[1751271965014,0.26630343,653.92,652.89,1.68464858]
[1751271965213,0.26630343,653.92,652.9,1.68464858]
[1751271965516,0.26630343,653.92,652.91,1.68464858]
[1751271965714,0.26630343,653.92,652.92,1.68464858]
[1751271966013,0.26630343,653.92,652.93,1.68464858]
[1751271966317,0.26630343,653.92,652.94,1.68464858]
[1751271966511,0.26630343,653.92,652.95,1.68464858]
[1751271966711,0.26630343,653.92,652.96,1.68464858]
[1751271966917,0.26630343,653.92,652.97,1.68464858]
[1751271967117,0.26630343,653.92,652.81,1.14717273]
[1751271967118,0.26630343,653.92,652.98,1.68464858]
[1751271967315,0.26630343,653.92,652.99,1.68464858]
[1751271967515,0.26630343,653.92,653.0,1.68464858]
[1751271967813,0.26630343,653.92,653.01,1.68464858]
[1751271968014,0.26630343,653.92,653.02,1.68464858]
[1751271968217,0.26630343,653.92,653.03,1.68464858]
[1751271968417,0.26630343,653.92,653.04,1.68464858]
[1751271968615,0.26630343,653.92,653.05,1.68464858]
[1751271968914,0.26630343,653.92,653.06,1.68464858]
[1751271969219,0.26630343,653.92,653.07,1.68464858]
[1751271969514,0.26630343,653.92,653.08,1.68464858]
[1751271969715,0.26630343,653.92,653.09,1.68464858]
[1751271969915,0.26630343,653.92,653.1,1.68464858]
[1751271970115,0.26630343,653.92,652.85,1.14717273]
[1751271970116,0.26630343,653.92,653.11,1.68464858]
[1751271970317,0.26630343,653.92,653.12,1.68464858]
[1751271970518,0.26630343,653.92,653.13,0.56661787]
[1751271970817,0.26630343,653.92,653.14,0.56661787]
[1751271971015,0.26630343,653.92,653.15,0.56661787]
[1751271971218,0.26630343,653.92,653.16,0.56661787]
[1751271971417,0.26630343,653.92,653.17,0.56661787]
[1751271971617,0.26630343,653.92,653.18,0.56661787]
[1751271971813,0.26630343,653.92,653.19,0.56661787]
[1751271972018,0.26630343,653.92,653.2,0.56661787]
[1751271972215,0.26630343,653.92,652.87,1.14717273]
[1751271972514,0.26630343,653.92,652.88,1.68460661]
[1751271972817,0.26630343,653.92,652.89,1.68460661]
[1751271973118,0.26630343,653.92,652.9,1.68460661]
[1751271973320,0.26630343,653.92,652.91,1.68460661]
[1751271973519,0.26630343,653.92,652.92,1.68460661]
[1751271973715,0.26630343,653.92,652.93,1.68460661]
[1751271973914,0.26630343,653.92,652.94,1.68460661]
[1751271974116,0.26630343,653.92,652.95,1.68460661]
[1751271974419,0.26630343,653.92,652.96,1.68460661]
[1751271974619,0.26630343,653.92,652.97,1.68460661]
[1751271974819,0.26630343,653.92,652.98,1.68460661]
[1751271975020,0.26630343,653.92,652.99,1.68460661]
[1751271975222,0.26630343,653.92,653.0,1.68460661]
[1751271975420,0.26630343,653.92,653.01,1.68460661]
[1751271975620,0.26630343,653.92,653.02,1.68460661]
[1751271975920,0.26630343,653.92,653.03,1.68460661]
[1751271976221,0.26630343,653.92,653.04,1.68460661]
[1751271976418,0.26630343,653.92,653.05,1.68460661]
[1751271976622,0.26630343,653.92,653.06,1.68460661]
[1751271976820,0.26630343,653.92,653.07,1.68460661]
[1751271977018,0.26630343,653.92,653.08,1.68460661]
[1751271977218,0.26630343,653.92,653.09,1.68460661]
[1751271977421,0.26630343,653.92,653.1,1.68460661]
[1751271977619,0.26630343,653.92,653.11,1.68460661]
[1751271977920,0.26630343,653.92,653.12,1.68460661]
[1751271978121,0.26630343,653.92,653.13,0.56660863]
[1751271978318,0.26630343,653.92,653.14,0.56660863]
[1751271978619,0.26630343,653.92,653.15,0.56660863]
[1751271978820,0.26630343,653.92,653.16,0.56660863]
[1751271979018,0.26630343,653.92,653.17,0.56660863]
[1751271979223,0.26630343,653.92,653.18,0.56660863]
[1751271979421,0.26630343,653.92,653.19,0.56660863]
[1751271979619,0.26630343,653.92,653.2,0.56660863]
[1751271979819,0.26630343,653.92,653.21,0.56660863]
[1751271980020,0.26630343,653.92,652.86,1.14717273]
[1751271980220,0.26630343,653.92,652.87,1.68482572]
[1751271980422,0.26630343,653.92,652.88,1.68482572]
[1751271980617,0.26630343,653.92,652.89,1.68482572]
[1751271980823,0.26630343,653.92,652.9,1.68482572]
[1751271981020,0.26630343,653.92,652.91,1.68482572]
[1751271981219,0.26630343,653.92,652.92,1.68482572]
[1751271981422,0.26630343,653.92,652.93,1.68482572]
[1751271981626,0.26630343,653.92,652.94,1.68482572]
[1751271981921,0.26630343,653.92,652.95,1.68482572]
[1751271982125,0.26630343,653.92,652.96,1.68482572]
[1751271982424,0.26630343,653.92,652.97,1.68482572]
[1751271982720,0.26630343,653.92,652.98,1.68482572]
[1751271982924,0.26630343,653.92,652.99,1.68482572]
[1751271983120,0.26630343,653.92,653.0,1.68482572]
[1751271983320,0.26630343,653.92,653.01,1.68482572]
[1751271983522,0.26630343,653.92,653.02,1.68482572]
[1751271983721,0.26630343,653.92,653.03,1.68482572]
[1751271983926,0.26630343,653.92,653.04,1.68482572]
[1751271984123,0.26630343,653.92,653.05,1.68482572]
[1751271984321,0.26630343,653.92,653.06,1.68482572]
[1751271984523,0.26630343,653.92,653.07,1.68482572]
[1751271984724,0.26630343,653.92,653.08,1.68482572]
[1751271984928,0.26630343,653.92,653.09,1.68482572]
[1751271985228,0.26630343,653.92,653.1,1.68482572]
[1751271985428,0.26630343,653.92,653.11,1.68482572]
[1751271985628,0.26630343,653.92,653.12,1.68482572]
[1751271985824,0.26630343,653.92,653.13,0.56659145]
[1751271986024,0.26630343,653.92,653.14,0.56659145]
[1751271986229,0.26630343,653.92,653.15,0.56659145]
[1751271986429,0.26630343,653.92,653.16,0.56659145]
[1751271986629,0.26630343,653.92,653.17,0.56659145]
[1751271986825,0.26630343,653.92,653.18,0.56659145]
[1751271987028,0.26630343,653.92,653.19,0.56659145]
[1751271987329,0.26630343,653.92,653.2,0.56659145]
[1751271987527,0.26630343,653.92,653.21,0.56659145]
[1751271987829,0.26630343,653.92,653.22,0.56659145]
[1751271988029,0.26630343,653.92,653.23,0.56659145]
[1751271988235,0.26630343,653.92,652.83,1.14717273]
[1751271988236,0.26630343,653.92,652.84,1.14717273]
[1751271988429,0.26630343,653.92,652.85,1.68490801]
[1751271988631,0.26630343,653.92,652.86,1.68490801]
[1751271988830,0.26630343,653.92,652.87,1.68490801]
[1751271989026,0.26630343,653.92,652.88,1.68490801]
[1751271989330,0.26630343,653.92,652.89,1.68490801]
[1751271989531,0.26630343,653.92,652.9,1.68490801]
[1751271989831,0.26630343,653.92,652.91,1.68490801]
[1751271990130,0.26630343,653.92,652.92,1.68490801]
[1751271990331,0.26630343,653.92,652.93,1.68490801]
[1751271990526,0.26630343,653.92,652.94,1.68490801]
[1751271990729,0.26630343,653.92,652.95,1.68490801]
[1751271990931,0.26630343,653.92,652.96,1.68490801]
[1751271991129,0.26630343,653.92,652.97,1.68490801]
[1751271991328,0.26630343,653.92,652.98,1.68490801]
[1751271991533,0.26630343,653.92,652.99,1.68490801]
[1751271991833,0.26630343,653.92,653.0,1.68490801]
[1751271992029,0.26630343,653.92,653.01,1.68490801]
[1751271992233,0.26630343,653.92,653.02,1.68490801]
[1751271992433,0.26630343,653.92,653.03,1.68490801]
[1751271992733,0.26630343,653.92,653.04,1.68490801]
[1751271992934,0.26630343,653.92,653.05,1.68490801]
[1751271993130,0.26630343,653.92,653.06,1.68490801]
[1751271993336,0.26630343,653.92,653.07,1.68490801]
[1751271993532,0.26630343,653.92,653.08,1.68490801]
[1751271993830,0.26630343,653.92,653.09,1.68490801]
[1751271994043,0.26630343,653.92,653.1,1.68490801]
[1751271994336,0.26630343,653.92,653.11,1.68490801]
[1751271994532,0.26630343,653.92,653.12,1.68490801]
[1751271994734,0.26630343,653.92,653.13,1.68490801]
[1751271994933,0.26630343,653.92,653.14,0.56661954]
[1751271995132,0.26630343,653.92,653.15,0.56661954]
[1751271995330,0.26630343,653.92,653.16,0.56661954]
[1751271995634,0.26630343,653.92,653.17,0.56661954]
[1751271995930,0.26630343,653.92,653.18,0.56661954]
[1751271996131,0.26630343,653.92,653.19,0.56661954]
[1751271996330,0.26630343,653.92,653.2,0.56661954]
[1751271996533,0.26630343,653.92,653.21,0.56661954]
[1751271996731,0.26630343,653.92,653.22,0.56661954]
[1751271996933,0.26630343,653.92,653.23,0.56661954]
[1751271997133,0.26630343,653.92,653.24,0.56618137]
[1751271997336,0.26630343,653.92,652.76,1.14717273]
[1751271997633,0.26630343,653.92,652.77,1.68453761]
[1751271997836,0.26630343,653.92,652.78,1.68453761]
[1751271998033,0.26630343,653.92,652.79,1.68453761]
[1751271998232,0.26630343,653.92,652.8,1.68453761]
[1751271998533,0.26630343,653.92,652.81,1.68453761]
[1751271998733,0.26630343,653.92,652.82,1.68453761]
[1751271998938,0.26630343,653.92,652.83,1.68453761]
[1751271999142,0.26630343,653.92,652.84,1.68453761]
[1751271999342,0.26630343,653.92,652.85,1.68453761]
[1751271999538,0.26630343,653.92,652.86,1.68453761]
[1751271999741,0.26630343,653.92,652.87,1.68453761]
[1751271999940,0.26630343,653.92,652.88,1.68453761]
[1751272000142,0.26630343,653.92,652.89,1.68453761]
[1751272000343,0.26630343,653.92,652.9,1.68453761]
[1751272000540,0.26630343,653.92,652.91,1.68453761]
[1751272000744,0.26630343,653.92,652.92,1.68453761]
[1751272001040,0.26630343,653.92,652.93,1.68453761]
[1751272001245,0.26630343,653.92,652.94,1.68453761]
[1751272001444,0.26630343,653.92,652.95,1.68453761]
[1751272001641,0.26630343,653.92,652.96,0.56621747]
[1751272001945,0.26630343,653.92,652.97,0.56621747]
[1751272002142,0.26630343,653.92,652.98,0.56621747]
[1751272002343,0.26630343,653.92,652.99,0.56621747]
[1751272002645,0.26630343,653.92,653.0,0.56621747]
[1751272002844,0.26630343,653.92,652.58,0.26632177]
[1751272002845,0.26630343,653.92,653.01,0.56621747]
[1751272003046,0.26630343,653.92,653.02,0.56621747]
[1751272003343,0.26630343,653.92,653.03,0.56621747]
[1751272003547,0.26630343,653.92,653.04,0.56621747]
[1751272003747,0.26630343,653.92,652.61,1.14717273]
[1751272003947,0.26630343,653.92,652.62,1.68213859]
[1751272004151,0.26630343,653.92,652.63,1.68213859]
[1751272004345,0.26630343,653.92,652.64,1.68213859]
[1751272004544,0.26630343,653.92,652.65,1.68213859]
[1751272004843,0.26630343,653.92,652.66,1.68213859]
[1751272005044,0.26630343,653.92,652.67,1.68213859]
[1751272005245,0.26630343,653.92,652.68,1.68213859]
[1751272005448,0.26630343,653.92,652.6,1.14717273]
[1751272005449,0.26630343,653.92,652.69,1.68213859]
[1751272005646,0.26630343,653.92,652.7,1.68213859]
[1751272005947,0.26630343,653.92,652.71,1.68213859]
[1751272006147,0.26630343,653.92,652.58,0.26632177]
[1751272006148,0.26630343,653.92,652.72,1.6819805]
[1751272006345,0.26630343,653.92,652.73,1.6819805]
[1751272006547,0.26630343,653.92,652.74,1.6819805]
[1751272006750,0.26630343,653.92,652.58,1.4134945]
[1751272006751,0.26630343,653.92,652.75,1.6819805]
[1751272006947,0.26630343,653.92,652.76,1.6819805]
[1751272007147,0.26630343,653.92,652.77,1.6819805]
[1751272007348,0.26630343,653.92,652.78,1.6819805]
[1751272007551,0.26630343,653.92,652.79,1.6819805]
[1751272007746,0.26630343,653.92,652.8,1.6819805]
[1751272007950,0.26630343,653.92,652.81,1.6819805]
[1751272008249,0.26630343,653.92,652.82,1.6819805]
[1751272008451,0.26630343,653.92,652.83,1.6819805]
[1751272008647,0.26630343,653.92,652.84,1.6819805]
[1751272008847,0.26630343,653.92,652.85,1.6819805]
[1751272009047,0.26630343,653.92,652.86,1.6819805]
[1751272009244,0.26630343,653.92,652.58,0.26632177]
[1751272009245,0.26630343,653.92,652.87,1.6819805]
[1751272009449,0.26630343,653.92,652.88,1.6819805]
[1751272009649,0.26630343,653.92,652.89,1.6819805]
[1751272009845,0.26630343,653.92,652.9,1.6819805]
[1751272010048,0.26630343,653.92,652.91,1.6819805]
[1751272010348,0.26630343,653.92,652.92,0.565154]
[1751272010546,0.26630343,653.92,652.93,0.565154]
[1751272010746,0.26630343,653.92,652.94,0.565154]
[1751272010951,0.26630343,653.92,652.95,0.565154]
[1751272011151,0.26630343,653.92,652.96,0.565154]
[1751272011348,0.26630343,653.92,652.97,0.565154]
[1751272011550,0.26630343,653.92,652.98,0.565154]
[1751272011752,0.26630343,653.92,652.99,0.565154]
[1751272011952,0.26630343,653.92,653.0,0.565154]
[1751272012153,0.26630343,653.92,653.01,0.565154]
[1751272012354,0.26630343,653.92,652.6,1.14717273]
[1751272012552,0.26630343,653.92,652.61,1.6806903]
[1751272012749,0.26630343,653.92,652.62,1.6806903]
[1751272013050,0.26630343,653.92,652.63,1.6806903]
[1751272013254,0.26630343,653.92,652.64,1.6806903]
[1751272013456,0.26630343,653.92,652.65,1.6806903]
[1751272013653,0.26630343,653.92,652.66,1.6806903]
[1751272013851,0.26630343,653.92,652.67,1.6806903]
[1751272014051,0.26630343,653.92,652.68,1.6806903]
[1751272014251,0.26630343,653.92,652.69,1.6806903]
[1751272014455,0.26630343,653.92,652.7,1.6806903]
[1751272014656,0.26630343,653.92,652.71,1.6806903]
[1751272014856,0.26630343,653.92,652.72,1.6806903]
[1751272015056,0.26630343,653.92,652.73,1.6806903]
[1751272015356,0.26630343,653.92,652.74,1.6806903]
[1751272015650,0.26630343,653.92,652.75,1.6806903]
[1751272015851,0.26630343,653.92,652.76,1.6806903]
[1751272016051,0.26630343,653.92,652.77,1.6806903]
[1751272016255,0.26630343,653.92,652.62,1.14717273]
[1751272016256,0.26630343,653.92,652.78,1.6806903]
[1751272016451,0.26630343,653.92,652.79,1.6806903]
[1751272016753,0.26630343,653.92,652.8,1.6806903]
[1751272016953,0.26630343,653.92,652.81,1.6806903]
[1751272017153,0.26630343,653.92,652.82,1.6806903]
[1751272017355,0.26630343,653.92,652.83,1.6806903]
[1751272017558,0.26630343,653.92,652.84,1.6806903]
[1751272017757,0.26630343,653.92,652.85,1.6806903]
[1751272018057,0.26630343,653.92,652.86,1.6806903]
[1751272018357,0.26630343,653.92,652.87,1.6806903]
[1751272018553,0.26630343,653.92,652.88,1.6806903]
[1751272018856,0.26630343,653.92,652.89,1.6806903]
[1751272019057,0.26630343,653.92,652.9,0.56480079]
[1751272019355,0.26630343,653.92,652.91,0.56480079]
[1751272019553,0.26630343,653.92,652.92,0.56480079]
[1751272019753,0.26630343,653.92,652.93,0.56480079]
[1751272020057,0.26630343,653.92,652.94,0.56480079]
[1751272020354,0.26630343,653.92,652.95,0.5646426]
[1751272020556,0.26630343,653.92,652.96,0.5646426]
[1751272020753,0.26630343,653.92,652.97,0.5646426]
[1751272020953,0.26630343,653.92,652.98,0.5646426]
[1751272021154,0.26630343,653.92,652.99,0.5646426]
[1751272021354,0.26630343,653.92,652.63,1.14717273]
[1751272021552,0.26630343,653.92,652.64,1.68008675]
[1751272021752,0.26630343,653.92,652.65,1.68008675]
[1751272022052,0.26630343,653.92,652.66,1.68008675]
[1751272022257,0.26630343,653.92,652.67,1.68008675]
[1751272022558,0.26630343,653.92,652.68,1.68008675]
[1751272022856,0.26630343,653.92,652.69,1.68008675]
[1751272023058,0.26630343,653.92,652.7,1.68008675]
[1751272023256,0.26630343,653.92,652.71,1.68008675]
[1751272023453,0.26630343,653.92,652.72,1.68008675]
[1751272023651,0.26630343,653.92,652.73,1.68008675]
[1751272023853,0.26630343,653.92,652.74,1.68008675]
[1751272024057,0.26630343,653.92,652.75,1.68008675]
[1751272024254,0.26630343,653.92,652.76,1.68008675]
[1751272024453,0.26630343,653.92,652.77,1.68008675]
[1751272024657,0.26630343,653.92,652.78,1.68008675]
[1751272024859,0.26630343,653.92,652.62,1.14717273]
[1751272024860,0.26630343,653.92,652.79,1.68008675]
[1751272025159,0.26630343,653.92,652.8,1.68008675]
[1751272025356,0.26630343,653.92,652.81,1.68008675]
[1751272025557,0.26630343,653.92,652.82,1.68008675]
[1751272025757,0.26630343,653.92,652.83,1.68008675]
[1751272025956,0.26630343,653.92,652.84,1.68008675]
[1751272026257,0.26630343,653.92,652.85,1.68008675]
[1751272026558,0.26630343,653.92,652.86,1.68008675]
[1751272026759,0.26630343,653.92,652.87,1.68008675]
[1751272027060,0.26630343,653.92,652.88,1.68008675]
[1751272027259,0.26630343,653.92,652.62,1.14717273]
[1751272027260,0.26630343,653.92,652.89,1.68008675]
[1751272027460,0.26630343,653.92,652.9,1.68008675]
[1751272027659,0.26630343,653.92,652.58,0.26632177]
[1751272027660,0.26630343,653.92,652.91,1.68008675]
[1751272027960,0.26630343,653.92,652.92,1.68008675]
[1751272028160,0.26630343,653.92,652.93,1.68008675]
[1751272028460,0.26630343,653.92,652.94,1.68008675]
[1751272028659,0.26630343,653.92,652.95,0.56463736]
[1751272028861,0.26630343,653.92,652.96,0.56463736]
[1751272029160,0.26630343,653.92,652.97,0.56463736]
[1751272029356,0.26630343,653.92,652.98,0.56463736]
[1751272029562,0.26630343,653.92,652.99,0.56463736]
[1751272029862,0.26630343,653.92,653.0,0.56463736]
[1751272030060,0.26630343,653.92,653.01,0.56463736]
[1751272030263,0.26630343,653.92,653.02,0.56463736]
[1751272030559,0.26630343,653.92,653.03,0.56463736]
[1751272030760,0.26630343,653.92,653.04,0.56463736]
[1751272030964,0.26630343,653.92,653.05,0.56463736]
[1751272031163,0.26630343,653.92,653.06,0.56463736]
[1751272031460,0.26630343,653.92,652.6,1.14717273]
[1751272031657,0.26630343,653.92,652.61,1.68019609]
[1751272031961,0.26630343,653.92,652.62,1.68019609]
[1751272032160,0.26630343,653.92,652.63,1.68019609]
[1751272032461,0.26630343,653.92,652.64,1.68019609]
[1751272032658,0.26630343,653.92,652.58,0.26632177]
[1751272032659,0.26630343,653.92,652.65,1.68019609]
[1751272032860,0.26630343,653.92,652.66,1.68019609]
[1751272033162,0.26630343,653.92,652.67,1.68019609]
[1751272033364,0.26630343,653.92,652.68,1.68019609]
[1751272033562,0.26630343,653.92,652.69,1.68019609]
[1751272033761,0.26630343,653.92,652.7,1.68019609]
[1751272033965,0.26630343,653.92,652.71,1.68019609]
[1751272034260,0.26630343,653.92,652.72,1.68019609]
[1751272034565,0.26630343,653.92,652.73,1.68019609]
[1751272034864,0.26630343,653.92,652.74,1.68019609]
[1751272035064,0.26630343,653.92,652.75,1.68019609]
[1751272035264,0.26630343,653.92,652.76,1.68019609]
[1751272035464,0.26630343,653.92,652.77,1.68019609]
[1751272035666,0.26630343,653.92,652.78,1.68019609]
[1751272035965,0.26630343,653.92,652.79,1.68019609]
[1751272036264,0.26630343,653.92,652.8,1.68019609]
[1751272036464,0.26630343,653.92,652.81,1.68019609]
[1751272036663,0.26630343,653.92,652.82,1.68019609]
[1751272036866,0.26630343,653.92,652.83,1.68019609]
[1751272037062,0.26630343,653.92,652.84,1.68019609]
[1751272037361,0.26630343,653.92,652.85,1.68019609]
[1751272037566,0.26630343,653.92,652.86,1.68019609]
[1751272037765,0.26630343,653.92,652.87,1.68019609]
[1751272037962,0.26630343,653.92,652.88,1.68019609]
[1751272038166,0.26630343,653.92,652.89,1.68019609]
[1751272038464,0.26630343,653.92,652.9,1.68019609]
[1751272038663,0.26630343,653.92,652.91,1.68019609]
[1751272038866,0.26630343,653.92,652.92,0.56460334]
[1751272039164,0.26630343,653.92,652.93,0.56460334]
[1751272039370,0.26630343,653.92,652.94,0.56460334]
[1751272039570,0.26630343,653.92,652.95,0.56460334]
[1751272039865,0.26630343,653.92,652.96,0.56460334]
[1751272040064,0.26630343,653.92,652.97,0.56460334]
[1751272040265,0.26630343,653.92,652.98,0.56460334]
[1751272040470,0.26630343,653.92,652.99,0.56460334]
[1751272040764,0.26630343,653.92,652.68,1.14717273]
[1751272040964,0.26630343,653.92,652.69,1.68122212]
[1751272041164,0.26630343,653.92,652.7,1.68122212]
[1751272041363,0.26630343,653.92,652.71,1.68122212]
[1751272041565,0.26630343,653.92,652.72,1.68122212]
[1751272041767,0.26630343,653.92,652.73,1.68122212]
[1751272041963,0.26630343,653.92,652.74,1.68122212]
[1751272042164,0.26630343,653.92,652.75,1.68122212]
[1751272042370,0.26630343,653.92,652.76,1.68122212]
[1751272042570,0.26630343,653.92,652.77,1.68122212]
[1751272042770,0.26630343,653.92,652.78,1.68122212]
[1751272042967,0.26630343,653.92,652.79,1.68122212]
[1751272043168,0.26630343,653.92,652.8,1.68122212]
[1751272043367,0.26630343,653.92,652.69,1.14717273]
[1751272043368,0.26630343,653.92,652.81,1.68122212]
[1751272043572,0.26630343,653.92,652.82,1.68122212]
[1751272043768,0.26630343,653.92,652.83,1.68122212]
[1751272043972,0.26630343,653.92,652.84,1.68122212]
[1751272044169,0.26630343,653.92,652.85,1.68122212]
[1751272044369,0.26630343,653.92,652.86,1.68122212]
[1751272044670,0.26630343,653.92,652.87,1.68122212]
[1751272044871,0.26630343,653.92,652.88,1.68122212]
[1751272045074,0.26630343,653.92,652.89,1.68122212]
[1751272045270,0.26630343,653.92,652.9,1.68122212]
[1751272045574,0.26630343,653.92,652.91,1.68122212]
[1751272045870,0.26630343,653.92,652.92,1.68122212]
[1751272046075,0.26630343,653.92,652.93,0.56482695]
[1751272046374,0.26630343,653.92,652.94,0.56482695]
[1751272046574,0.26630343,653.92,652.95,0.56482695]
[1751272046769,0.26630343,653.92,652.96,0.56482695]